Cogmind - Beta 13 @@@ ROGUE MODE // 2024.07.25 @ 15:30:57 Player: BigChungusGaming Result: Destroyed self with Light Nuclear Core chain reaction Performance ------------- Evolutions (2) 1000 Regions Visited (5) 1000 Robots Destroyed (46) 230 Value Destroyed (1682) 1682 Prototype IDs (3) 60 Alien Tech Used (0) 0 Bonus (815) 815 TOTAL SCORE: 4787 Bonus ------- High Alert Combat Kills 532 Follower Combat Kills 57 Aligned with FarCom 300 Friendly Fire -74 Cogmind --------- Core Integrity 0/550 Matter 246/300 Energy 25/100 System Corruption 3% Temperature Cool (12) Movement Core (100) Ox1 Location -8/Materials Parts ------- > --- POWER (1) -------- (None) > --- PROPULSION (4) --- (None) > --- UTILITY (4) ------ (None) > --- WEAPON (2) ------- Advanced EMP Blaster > --- INVENTORY (5) ---- Nuclear Core Aluminum Leg Carbon-fiber Leg Advanced EMP Blaster Peak State ------------ > --- POWER ------------ Nuclear Core > --- PROPULSION ------- Armored Huge Wheel Armored Huge Wheel > --- UTILITY ---------- Small Storage Unit Cloak of Protection Improved Weapon Shielding Improved Shield Generator > --- WEAPON ----------- Advanced EMP Blaster Advanced EMP Blaster > --- INVENTORY -------- Nuclear Core Aluminum Leg Carbon-fiber Leg Ion Cannon High-powered Shotgun High-powered Shotgun Shock Bomb Launcher Great Maul [Rating: 45] Favorites ----------- Power Ion Engine Engine Ion Engine Power Core Nuclear Core Propulsion Light Treads Treads Light Treads Wheel Armored Huge Wheel Utility Small Storage Unit Device Cloak of Protection Storage Small Storage Unit Processor Improved Salvage Targeting Computer Protection Hardened Medium Armor Plating Weapon Light Assault Rifle Energy Gun Small Laser Ballistic Gun Light Assault Rifle Launcher Rocket Launcher Impact Weapon Great Maul Build | -11 -10 -10 -10 -9 -8 ------- Run | Yrd Mat Min Exi Min Mat Slots Evolved 4 | . . . . . 4 Power . | . . . . . . Propulsion 2 | . . . . . 2 Utility 2 | . . . . . 2 Weapon . | . . . . . . Parts Attached 33 | 7 . 1 4 . 21 Power 3 | 1 . . . . 2 Engine 2 | 1 . . . . 1 Core 1 | . . . . . 1 Reactor . | . . . . . . Propulsion 4 | 2 . . . . 2 Treads 2 | 2 . . . . . Leg . | . . . . . . Wheel 2 | . . . . . 2 Hover . | . . . . . . Flight . | . . . . . . Utility 10 | 1 . 1 2 . 6 Device 5 | . . 1 2 . 2 Storage 1 | 1 . . . . . Processor 1 | . . . . . 1 Hackware . | . . . . . . Protection 3 | . . . . . 3 Artifact . | . . . . . . Weapon 16 | 3 . . 2 . 11 Energy Gun 1 | 1 . . . . . Energy Cannon . | . . . . . . Ballistic Gun 6 | 2 . . . . 4 Ballistic Cannon . | . . . . . . Launcher 8 | . . . 2 . 6 Special Weapon . | . . . . . . Impact Weapon 1 | . . . . . 1 Slashing Weapon . | . . . . . . Piercing Weapon . | . . . . . . Special Melee Weapon . | . . . . . . Unidentified Prototypes 3 | . . . 2 . 1 Parts Lost 12 | . . . . . 12 Power 1 | . . . . . 1 Propulsion 2 | . . . . . 2 Utility 5 | . . . . . 5 Weapon 4 | . . . . . 4 Highest Loss Streak 10 | . . . . . 10 To Critical Strikes . | . . . . . . Average Slot Usage (%) 89 | . 85 95 99 100 72 Engine 11 | . 14 14 14 14 5 Treads 20 | . 28 28 28 28 4 Wheel 4 | . . . . . 12 Device 12 | . . 9 13 14 13 Storage 12 | . 14 14 14 14 8 Protection 1 | . . . . . 5 Ballistic Gun 14 | . 28 28 27 . 2 Launcher 9 | . . . . 28 14 Naked Turns 14 | . . . . . 14 Heaviest Build 44 | 13 13 15 25 25 44 Greatest Support 56 | 40 40 40 40 40 56 Greatest Overweight (x) 1 | . . . . . 1 Average Overweight (x) . | . . . . . . Largest Inventory Capacity 8 | 8 8 8 8 8 8 Average Capacity 7 | 7 8 8 8 8 7 Most Carried 8 | 6 6 8 8 8 8 Average Carried 7 | 3 6 7 8 8 7 Final Capacity 8 | 8 8 8 8 8 5 Final Carried 8 | 6 6 8 8 8 4 Class Distribution -------------------- 100% | Mutant Dominant Class ---------------- Mutant | -10/Materials Mutant | -10/Mines Mutant | -10/Exiles Mutant | -9/Mines Mutant | -8/Materials Resources | -11 -10 -10 -10 -9 -8 ----------- Run | Yrd Mat Min Exi Min Mat Matter Collected 1103 | 253 25 10 . 58 757 Remotely . | . . . . . . Salvage Created 1408 | . 30 . . 23 1355 Parts 80 | . . . . 2 78 Haulers Intercepted 1 | . . . . . 1 Recyclers Shooed 2 | . . 1 . 1 . Parts Field Recycled . | . . . . . . Retrieved Matter . | . . . . . . Parts Self-Destructed . | . . . . . . Prevented . | . . . . . . Kills | -11 -10 -10 -10 -9 -8 ------- Run | Yrd Mat Min Exi Min Mat Combat Hostiles Destroyed 40 | . 1 . . 3 36 Melee 2 | . . . . . 2 Guns 11 | . 1 . . . 10 AOE 27 | . . . . 3 24 Classes Destroyed 9 | . 1 . . 1 7 Worker 3 | . . . . . 3 Builder 1 | . . . . . 1 Hauler 1 | . . . . . 1 Mechanic 1 | . . . . . 1 Swarmer 10 | . . . . 3 7 Grunt 21 | . 1 . . . 20 Sentry 6 | . . . . . 6 Specialist 2 | . . . . . 2 Hunter 1 | . . . . . 1 Best Kill Streak 11 | . 1 . . 3 11 Combat Bots Only 9 | . 1 . . 3 9 Max Kills in Single Turn 3 | . 1 . . 3 3 Gunslinging . | . . . . . . Exploded 3 | . . . . 3 2 Melee 1 | . . . . . 1 Uniques/NPCs Destroyed . | . . . . . . Combat | -11 -10 -10 -10 -9 -8 -------- Run | Yrd Mat Min Exi Min Mat Hostile Shots Fired 216 | . 2 . . . 214 Missed 61 | . . . . . 61 Damage Taken 2565 | . 22 . . 70 2473 Core 563 | . 11 . . . 552 Absorbed by Shields 492 | . . . . . 492 Redirected to Shielding 105 | . . . . . 105 Ignored by Resistances 132 | . . . . . 132 Core Remaining (%) 97 | 100 . . . 95 . Volleys Fired 67 | . 2 . . 1 64 Largest 2 | . 2 . . 2 2 Hottest 72 | . 40 . . 63 72 Shots Fired 122 | . 4 . . 2 116 Gun 68 | . 4 . . . 64 Cannon . | . . . . . . Launcher 54 | . . . . 2 52 Special . | . . . . . . Kinetic 68 | . 4 . . . 64 Thermal . | . . . . . . Explosive 26 | . . . . 2 24 Electromagnetic 28 | . . . . . 28 Robot Hit Streak 8 | . 1 . . . 8 Robot Miss Streak 3 | . 1 . . 1 3 Penetration Max . | . . . . . . Secondary Targets 4 | . . . . . 4 Max Gunslinging Chain 1 | . . . . . 1 Shots Hit Robots 90 | . 2 . . . 88 Core Hits 96 | . 2 . . 8 86 Critical Kills . | . . . . . . Critical Parts Destroyed 2 | . . . . . 2 Critical Strikes 2 | . . . . . 2 Destroy 2 | . . . . . 2 Melee Attacks 6 | . . . . . 6 Impact 6 | . . . . . 6 Slashing . | . . . . . . Piercing . | . . . . . . Sneak Attacks . | . . . . . . Combat Hostiles . | . . . . . . Follow-up Attacks . | . . . . . . Damage Inflicted 4597 | . 27 13 . 201 4356 Guns 1101 | . 27 . . . 1074 Cannons . | . . . . . . Explosions 3179 | . . . . 192 2987 Melee 192 | . . . . . 192 Ramming 125 | . . 13 . 9 103 Kinetic 1101 | . 27 . . . 1074 Thermal 144 | . . . . . 144 Explosive 1794 | . . . . 192 1602 Electromagnetic 1241 | . . . . . 1241 Impact 192 | . . . . . 192 Slashing . | . . . . . . Piercing . | . . . . . . Highest Corruption 2 | . . . . . 2 Average Corruption 2 | . . . . . 2 Corruption Purged . | . . . . . . Corruption Blocked . | . . . . . . Overload Shots . | . . . . . . Overflow Damage 20 | . . . . . 20 Projectiles . | . . . . . . Explosions 16 | . . . . . 16 Melee 4 | . . . . . 4 Knockbacks 1 | . . . . . 1 Impact 1 | . . . . . 1 Kinetic . | . . . . . . Secondary . | . . . . . . Self-Inflicted Damage 396 | . . . . 71 325 Shots 19 | . . . . 2 17 Rammed 20 | . . 4 . 3 13 Targets Rammed 20 | . . 4 . 3 13 Kicked . | . . . . . . Crushed . | . . . . . . Highest Temperature 49 | . 6 . . 3 49 Average Temperature 12 | . 6 . . 2 13 Received Heat Transfer 782 | . 12 . . . 770 Siege Activations . | . . . . . . Robots Corrupted . | . . . . . . Combat Hostiles . | . . . . . . Parts Fried 3 | . . . . . 3 Impact Corruptions 1 | . . . . . 1 Robots Melted . | . . . . . . Combat Hostiles . | . . . . . . Parts Melted . | . . . . . . Heat Transferred 100 | . . . . . 100 Parts Sabotaged . | . . . . . . Parts Stolen . | . . . . . . Parts Stripped . | . . . . . . Power Chain Reactions 4 | . . . . . 4 Alert | -11 -10 -10 -10 -9 -8 ------- Run | Yrd Mat Min Exi Min Mat Peak Influence 1123 | . 20 7 . 124 1123 Initial 7 | . . 7 . . . Average 154 | . 4 1 . 54 398 Maximum Alert Level 4 | . . . . . 4 Low Security (%) 82 | 100 100 100 . 100 50 Level 1 2 | . . . . . 8 Level 2 3 | . . . . . 9 Level 3 10 | . . . . . 29 Level 4 . | . . . . . 1 Level 5 . | . . . . . . High Security . | . . . . . . Max Security . | . . . . . . Squads Dispatched 8 | . . 1 . 1 6 Investigation 1 | . . 1 . . . Extermination . | . . . . . . Reinforcement 7 | . . . . 1 6 Assault . | . . . . . . Garrison . | . . . . . . Intercept . | . . . . . . Searches Triggered . | . . . . . . Construction Impeded 3 | . . . . 1 2 Haulers Reinforced . | . . . . . . Active Scanning Responses . | . . . . . . Cargo Convoy Interrupts . | . . . . . . Stealth | -11 -10 -10 -10 -9 -8 --------- Run | Yrd Mat Min Exi Min Mat Distress Signals 4 | . . . . . 4 Communications Jammed . | . . . . . . Distress Signals . | . . . . . . Times Spotted 61 | . 1 . . . 60 Peak Tracking Total 8 | . 1 . . . 8 Tactical Retreats 6 | . . . . . 6 Traps | -11 -10 -10 -10 -9 -8 ------- Run | Yrd Mat Min Exi Min Mat Traps Triggered . | . . . . . . Indirectly . | . . . . . . Trap Hack Attempts . | . . . . . . Triggered . | . . . . . . Disarmed . | . . . . . . Reprogrammed . | . . . . . . Reused . | . . . . . . Traps Extracted . | . . . . . . Installed . | . . . . . . Triggered . | . . . . . . Machines | -11 -10 -10 -10 -9 -8 ---------- Run | Yrd Mat Min Exi Min Mat Machines Disabled 13 | . . . . . 13 Max in Single Turn 3 | . . . . . 3 Machines Repaired . | . . . . . . Machines Dismantled . | . . . . . . Machines Sabotaged . | . . . . . . Overloaded Fab Kills . | . . . . . . Hacking | -11 -10 -10 -10 -9 -8 --------- Run | Yrd Mat Min Exi Min Mat Machines Accessed 8 | . . 1 1 . 6 Terminals 5 | . . . . . 5 Fabricators . | . . . . . . Repair Stations . | . . . . . . Recycling Units . | . . . . . . Scanalyzers . | . . . . . . Garrison Access 1 | . . . . . 1 Total Hacks 18 | . . 1 2 . 15 Successful 13 | . . 1 2 . 10 Failed 5 | . . . . . 5 Catastrophic 1 | . . . . . 1 Database Lockouts . | . . . . . . Manual 1 | . . . 1 . . Terminals 12 | . . . . . 12 Fabricators . | . . . . . . Repair Stations . | . . . . . . Recycling Units . | . . . . . . Scanalyzers . | . . . . . . Garrison Access 3 | . . . . . 3 Terminal Hacks 13 | . . 1 2 . 10 Record 11 | . . . 2 . 9 Open Door 1 | . . 1 . . . Locate Traps 1 | . . . . . 1 Fabricator Hacks . | . . . . . . Repair Station Hacks . | . . . . . . Recycling Unit Hacks . | . . . . . . Scanalyzer . | . . . . . . Garrison Access Hacks . | . . . . . . Unauthorized Hacks . | . . . . . . Terminals . | . . . . . . Fabricators . | . . . . . . Repair Stations . | . . . . . . Recycling Units . | . . . . . . Scanalyzers . | . . . . . . Garrison Access . | . . . . . . Data Cores Recovered . | . . . . . . Used . | . . . . . . Hacking Detections 5 | . . . . . 5 Full Trace Events 1 | . . . . . 1 Feedback Events . | . . . . . . Feedback Blocked . | . . . . . . Robot Schematics Acquired . | . . . . . . Robots Built . | . . . . . . Authchips . | . . . . . . Time . | . . . . . . Total Robot Build Rating . | . . . . . . Part Schematics Acquired . | . . . . . . Parts Built . | . . . . . . Authchips . | . . . . . . Time . | . . . . . . Total Part Build Rating . | . . . . . . Parts Repaired . | . . . . . . Time . | . . . . . . Parts Recycled . | . . . . . . Recycled Matter . | . . . . . . Retrieved Matter . | . . . . . . Retrieved Components . | . . . . . . Parts Scanalyzed . | . . . . . . Part Schematics Acquired . | . . . . . . Parts Damaged . | . . . . . . Bothacking | -11 -10 -10 -10 -9 -8 ------------ Run | Yrd Mat Min Exi Min Mat Used RIF Installer . | . . . . . . Robots Hacked . | . . . . . . Non-combat . | . . . . . . Combat . | . . . . . . Robot Hacks Applied . | . . . . . . Relay Couplers Released . | . . . . . . Fabnet Peak Effective % . | . . . . . . Robots Rewired . | . . . . . . Allies Hacked . | . . . . . . Hacks Repelled . | . . . . . . Allies | -11 -10 -10 -10 -9 -8 -------- Run | Yrd Mat Min Exi Min Mat Total Allies 4 | . . 4 . . . Largest Group 3 | . . 3 3 3 2 Highest-Rated Group 40 | . . 40 40 40 32 Highest-Rated Ally 31 | . . 31 16 16 16 Total Orders . | . . . . . . Ally Attacks 17 | . . 1 . 5 11 Total Damage 177 | . . 22 . 57 98 Kills 4 | . . . . 2 2 Allies Corrupted . | . . . . . . Allies Melted . | . . . . . . Intel | -11 -10 -10 -10 -9 -8 ------- Run | Yrd Mat Min Exi Min Mat Robot Analysis Total . | . . . . . . Derelict Logs Recovered 2 | . . 1 . 1 . Drone Launches . | . . . . . . Drone Recoveries . | . . . . . . Exploration | -11 -10 -10 -10 -9 -8 ------------- Run | Yrd Mat Min Exi Min Mat Turns Passed 4921 | 165 92 1600 687 866 1511 Spaces Moved 3196 | 105 55 992 426 537 1081 Core 27 | 17 . . . . 10 Treads 2336 | 88 55 992 426 537 238 Legs . | . . . . . . Wheels 833 | . . . . . 833 Hover . | . . . . . . Flight . | . . . . . . Fastest Speed 50 | 50 160 160 160 160 50 Average Speed 143 | 142 160 160 160 160 113 Slowest Speed 160 | 160 160 160 160 160 160 Overloaded Moves . | . . . . . . Propulsion Burnouts . | . . . . . . Robots Hopped . | . . . . . . Cave-ins Triggered . | . . . . . . Exploration Rate (%) 53 | 5 11 99 62 76 67 Regions Visited 5 Branch Regions 3 Pre-discovered Areas 2 | . . 1 . 1 . Known Exits Taken . | . . . . . . Unknown Exits Taken 5 | 1 1 1 1 1 . Scrap Searched 3 | . . 1 . 2 . Spaces Dug . | . . . . . . Terrain Destroyed 272 | . . . . 13 259 Melee . | . . . . . . Projectile . | . . . . . . AOE 272 | . . . . 13 259 Terrain Rammed . | . . . . . . Walls Destroyed . | . . . . . . Machines Disabled . | . . . . . . Actions | -11 -10 -10 -10 -9 -8 --------- Run | Yrd Mat Min Exi Min Mat Total 3387 | 117 56 1003 431 540 1240 Wait 29 | . . 1 . . 28 Move 3191 | 104 54 991 425 536 1081 Hop . | . . . . . . Pick Up 19 | 6 . 4 . . 9 Fast Attach 21 | 6 . 1 2 . 12 Attach 2 | . . . . . 2 Detach . | . . . . . . Swap 10 | 1 . . 2 . 7 Drop 22 | . . 2 2 . 18 Fire 67 | . 2 . . 1 64 Melee 6 | . . . . . 6 Ram 13 | . . . . . 13 Kick . | . . . . . . Crush 7 | . . 4 . 3 . Escape Stasis . | . . . . . . Rewire . | . . . . . . Trap . | . . . . . . Miscellaneous . | . . . . . . Route ------- -11/Scrapyard -10/Materials -10/Mines (discovered 4 exits: [*Mat x2] / *Exi / [*Sub]) -10/Exiles -9/Mines -8/Materials History --------- Turn | Location | Event 8 | -11/Scrapyard | Discovered new exit (range 16) 166 | -11/Scrapyard | Entered Materials 206 | -10/Materials | Discovered new exit (range 15) 242 | -10/Materials | Met 8R-AWN 258 | -10/Materials | Entered Mines 259 | -10/Mines | YI-UF0 nonchalantly dropped a Grenade Launcher on the ground 259 | -10/Mines | Followed 8R-AWN into the Mines 300 | -10/Mines | Build established: Mutant 326 | -10/Mines | Found a damaged Exp. Sensor Array with a note attached 342 | -10/Mines | Learned location of Zion (-6) 604 | -10/Mines | Discovered new exit (range 14) 635 | -10/Mines | Received a Rocket Launcher from a helpful Derelict 656 | -10/Mines | Received a Mining Laser from a helpful Derelict 725 | -10/Mines | Met a Derelict shopkeep closing up shop 903 | -10/Mines | Discovered new exit (range 6) 927 | -10/Mines | Assisted by bots powering up and referring to "LRC-V3" 1060 | -10/Mines | Discovered new exit (range 5) 1570 | -10/Mines | Discovered new exit (range 9) 1858 | -10/Mines | Entered Exiles 1858 | -10/Exiles | Accompanied by 3 allies 1914 | -10/Exiles | Welcomed by 8R-AWN 1948 | -10/Exiles | Met EX-HEX 2015 | -10/Exiles | Met EX-BIN 2054 | -10/Exiles | Aligned with FarCom system 2055 | -10/Exiles | Given EX-Vault access code 2126 | -10/Exiles | Opened EX-Vault 2136 | -10/Exiles | Found Prototype Device 2136 | -10/Exiles | Identified Skeleton Box 2143 | -10/Exiles | Found Prototype Device 2143 | -10/Exiles | Identified Cloak of Protection 2181 | -10/Exiles | Warned to stay clear of 0b10 Research branches 2237 | -10/Exiles | Met EX-DEC 2411 | -10/Exiles | Discovered new exit (range 15) 2545 | -10/Exiles | Left Exiles lab with Cloak of Protection 2545 | -10/Exiles | Entered Mines 2545 | -9/Mines | Accompanied by 3 allies 2636 | -9/Mines | Discovered new exit (range 5) 2952 | -9/Mines | Learned Materials terminal intel 3191 | -9/Mines | Learned location of Storage (-9) 3411 | -9/Mines | Entered Materials 3411 | -8/Materials | Accompanied by 2 allies 3411 | -8/Materials | Evolved 4 slots: Propulsion x2, Utility x2 3412 | -8/Materials | Loaded intel: 11 terminal locations 4501 | -8/Materials | Destroyed 9 combat bots 4888 | -8/Materials | Core integrity fell below 50% 4907 | -8/Materials | Core integrity fell below 20% 4922 | -8/Materials | Destroyed self with Light Nuclear Core chain reaction Last Messages --------------- Acquired 164 matter. Slammed into H-61 Shepherd. Slammed into G-47 Trooper. Destabilizing: System corrupted (+2). Slammed into G-47 Trooper. Slug penetrates Wall. Slammed into G-47 Trooper. U-05 Engineer builds a Wall. Slammed into G-47 Trooper. U-05 Engineer builds a Wall. Slammed into G-47 Trooper. G-47 Trooper knocked back. Slammed into G-47 Trooper. Acquired 9 matter. M-13 Machinist repairs Welding Torch. M-13 Machinist destroyed. Door malfunctions. Chain reaction triggered in Corrupted Lgt. Nuclear Core. G-47 Trooper destroyed. Map ----- +----------------------------------------------------+ | #### ^ "" # #! | | #####???# "" # # = | | ????????# """ ## # + ! | | ????????# !#![ # # | | ????????# ! [%[] / # " " | | ????????#+#### =## = # # " | | ?????? #] # "# # """ | | ???????""" ## # ## # | | ????????Y" ! #### # #### ###### | | ??????? ???# #??# #????? | | ??????? !???# ######??# #????? | | ???????""" ???# #???????# #????? | | ????????"" ????# #???????# = #????? | | ?????????" ????# #???????#[%[#????? | | ????????? ????# #???????# = #????? | | ?????????????????# #####???# #????? | | ????????????###### #???# #????? | | ????????????? #???# #????? | | ??????????????? #???# #????? | | ???????????????? #??## ##???? | | ?????????????????# #??# #???? | | ????????????????##" ##??# #???? | | ???????############*% ##### #???? | | ???????##% ]!=!!%=#!%! #???? | | ???????## ]! ![!H/%w*##### %* ####? | | ????????# !@=%!u=#!% #???## ### ## | | ????????# =% !u[#== #????# # | | ????????####;;=;### #????# # !!! | | ?????????????? ? #???# + !! | | ??????????????? # #???# # !! | | ???????????????? + #???# ###### | | ?????????????????# #??## ##???# | | ?????????????????# #??# ##### | | ?????????????????## ##??# | | ??????????????????# #???# | | ??????????????????# #???# | | ??????????????????# #???# ##### | | ??????????????????# #???#######???? | | ??????????????????? #?????????????? | | ??????????????????? ?????????????? | | ??????????????##########????????????? | | ??????????????# ####?????????? | | ??????????????# """"" # #?????????? | | ??????????????# ""T"" # +?"???????? | | ??????????????# # #?T???????? | | ??????????????# # #?"???????? | | ??????????????# """ # #?????????? | | ??????????????# """ # #?????????? | | ??????????????# """ # #?????????? | | ??????????????# # #?????????? | +----------------------------------------------------+ Best States ------------- Heat Dissipation 31 Energy Generation 14 Energy Capacity 250 Matter Stores 300 Matter Capacity 300 Sight Range 16 Terrain Scan Density 10 Cloak Strength 5 Armor Coverage 225 Resistance: KI 20 Weapon Shielding 66 Evasion (%) 50 Recoil Reduction 2 Salvage Targeting 2 Item Schematics ----------------- None Robot Schematics ------------------ None Fabricated ------------ Nothing Alien Tech Used ----------------- None Achievements -------------- None Challenges ------------ None Game ------ Seed TachyonColdSword Manual? 0 Play Time 00:30:22 Cumulative 9.5 hours Start 2024.07.25 @ 14:59:15 End 2024.07.25 @ 15:30:57 Sessions 3 Manual Loads 0 Difficulty Rogue Special Mode None Game No. 15 Rogue 15 Adventurer 0 Explorer 0 Win Type - Total 0 Types 0/0/0/0/0/0/0/0/0 Lore% 17 Gallery% 16 Achievement% 14 Wizard Run 0 Options --------- Layout 1 ASCII 0 Keyboard 0 Movement Arrows Keybinds 0 Fullscreen 1 Font 32/SmallcapsGlow Map View 50x35 Zoom Use 0% Tactical HUD 0 Map Filters NONE Filters NONE Steam 1 RUN: 4936104c-bd97-467e-b6bb-672edeaca449